Workbook

Sheet 추경요약
A1: 2017학년도 소주한국학교 제2차 추가경정예산
A3: 세입 항목 | C3: 증감액 | D3: 세출 항목 | E3: 세부내역 | F3: 증감액
A4: 교육부지원금 | B4: 스쿨버스구입 | C4: ¥231,610.00 | D4: 자산취득비 | E4: 스쿨버스구입 | F4: ¥231,610.00
B5: 인건비 | C5: ¥9,307 | D5: 인건비 | E5: 인건비 | F5: ¥9,307
B6: 시설비 | C6: ¥6,050,850 | D6: 시설(대수선)비 | E6: 교사신축비 | F6: ¥6,050,850
B7: 교수학습자료구입 | C7: ¥138,673 | D7: 교수학습활동비 | E7: 교수학습자료구입 | F7: ¥138,673
B8: 교과연구회지원 | C8: ¥18,088 | E8: 교과연구회지원 | F8: ¥18,088
B9: 방과후학교운영지원 | C9: ¥83,625 | E9: 방과후학교운영지원 | F9: ¥83,625
B10: 저소득층자녀학비지원 | C10: ¥225,150 | E10: 저소득층자녀학비지원 | F10: ¥225,150
B11: 학교운영비 | C11: ¥-18,621 | D11: 학교운영비 | E11: 학교운영비 | F11: ¥-18,621
A12: 입학금 | C12: ¥388,000.00 | D12: 일반운영비 | E12: 일반운영비 | F12: ¥113,621
D13: 인건비 | E13: 인건비 | F13: ¥1,369,063
A14: 과년도수입 | C14: ¥31,226 | D14: 시설비 | E14: 대규모시설보수비 | F14: ¥-1,020,328
A15: 자체수입 | C15: ¥88,700 | D15: 교수학습활동비 | E15: 상담실구축 등 | F15: ¥45,600
A16: 발전기금 | C16: ¥9,000 | D16: 교수학습활동비 | E16: 도서구입(중) | F16: ¥9,000
A17: 적립금 | C17: ¥1,109,000 | D17: 시설(대수선)비 | E17: 교사신축비 | F17: ¥1,009,000
A18: 벽체보증금 반환 : 2015.11.18.지출금액184,440.64원 농민공 보증금 반환 : 2016.01.27.지출금액800,000원 | E18: 교사신축 준공식 | F18: ¥100,000
A19: 수익자부담경비 | B19: 방과후학교활동비 | C19: ¥280,000 | D19: 수익자부담경비 | E19: 방과후학교활동비 | F19: ¥280,000
B20: 수학여행, 현장학습비 | C20: ¥-338,004 | E20: 수학여행, 현장학습비 | F20: ¥-338,004
A21: 총계 | C21: =SUM(C4:C20) -> ¥8,306,604 | D21: 총계 | F21: =SUM(F4:F20) -> ¥8,306,634

Sheet 세입_2017
A1: 2017학년도 소주한국학교 제2차 세입 추가경정예산
O2: (단위 : RMB)
A3: 세입
A4: 항 | B4: 목 | C4: 산출기초
C5: 세목 | D5: 내역 | E5: 경정예산 | F5: 증감액 | G5: 단가 | H5: 인원(기간) | K5: 횟수 | O5: 기정예산액
A6: 학부모부담수입
B7: 입학금 | C7: 입학금 | E7: =O7+F7 -> 508,000 | F7: 388,000 | G7: 6,000 | H7: * | I7: 58 | J7: 명 | K7: * | L7: 1 | M7: 회 | N7: = | O7: 120,000
B8: 소계 | E8: =SUM(E7) -> 508,000 | F8: 388,000 | G8: 6,000 | H8: 0 | I8: 58 | J8: 0 | K8: 0 | L8: 1 | M8: 0 | N8: 0 | O8: 120,000
B9: 수업료 | C9: 유치원 | E9: =O9+F9 -> 250,000 | O9: 250,000
C10: 초등 | E10: =O10+F10 -> 3,000,000 | O10: 3,000,000
C11: 중등 | E11: =O11+F11 -> 2,160,000 | O11: 2,160,000
C12: 고등 | E12: 2,730,000 | O12: 2,730,000
B13: 소계 | E13: 8,140,000 | F13: =SUM(F9:F12) -> 0 | G13: =SUM(G10:G12) -> 0 | H13: 0 | I13: 0 | J13: 0 | K13: 0 | L13: 0 | M13: 0 | N13: 0 | O13: 8,140,000
B14: 수익자부담경비 | C14: 수학여행 | D14: 초등 | E14: =O14+F14 -> 68,912 | F14: -171,088 | O14: 240,000
D15: 중등 | E15: =O15+F15 -> 206,668 | F15: 62,668 | O15: 144,000
D16: 고등 | E16: 167,656 | F16: 11,656 | O16: 156,000
C17: 현장학습 | D17: 초등 | E17: =O17+F17 -> 0 | F17: -120,000 | O17: 120,000
D18: 중등 | E18: =O18+F18 -> 12,920 | F18: -59,080 | O18: 72,000
D19: 고등 | E19: =O19+F19 -> 15,840 | F19: -62,160 | O19: 78,000
C20: 급간식비 | D20: 전교생 | E20: =O20+F20 -> 1,221,250 | G20: 20 | H20: * | I20: 215 | J20: 명 | K20: * | L20: 184 | M20: 일 | N20: = | O20: 1,221,250
C21: 방과후학교 | D21: 초등 | E21: =O21+F21 -> 280,000 | F21: 160,000 | G21: 2,500 | H21: * | I21: 101 | J21: 명 | K21: * | L21: 1 | M21: 년 | N21: = | O21: 120,000
D22: 중등 | E22: 122,000 | F22: 50,000 | G22: 2,500 | H22: * | I22: 53 | J22: 명 | K22: * | L22: 1 | M22: 년 | N22: = | O22: 72,000
D23: 고등 | E23: 148,000 | F23: 70,000 | G23: 2,500 | H23: * | I23: 61 | J23: 명 | K23: * | L23: 1 | M23: 년 | N23: = | O23: 78,000
C24: 통학버스비 | D24: 전교생 | E24: 1,961,920 | G24: 31 | H24: * | I24: 215 | J24: 명 | K24: * | L24: 184 | M24: 일 | N24: = | O24: 1,961,920
B25: 소계 | E25: =SUM(E14:E24) -> 4,205,166 | F25: =SUM(F14:F24) -> -58,004 | O25: 4,263,170
A26: 계 | E26: =E8+E13+E25 -> 12,853,166 | F26: =E26-O26 -> 329,996 | O26: 12,523,170
A27: 교육부지원금
B28: 교직원인건비 | C28: 교직원인건비 | E28: =O28+F28 -> 2,427,581 | F28: 9,307 | O28: 2,418,274
B29: 운영비 | C29: 학교운영비 | E29: =O29+F29 -> 1,577,825 | F29: -18,621 | O29: 1,596,446
B30: 시설비 | C30: 신축비 | E30: =F30 -> 6,050,850 | F30: 6,050,850
B31: 기타 교육부지원금 | C31: 교수학습자료구입비 | E31: 138,673 | F31: 138,673
C32: 교과연구회지원비 | E32: 18,088 | F32: 18,088
C33: 방과후학교운영비원 | E33: =O33+F33 -> 83,625 | F33: 83,625
C34: 저소득층자녀학비지원 | E34: 225,150 | F34: 225,150
C35: 통학버스구입비 | E35: 231,610 | F35: 231,610
A36: 계 | E36: 10,753,402 | F36: =SUM(F27:F35) -> 6,738,682 | O36: 4,014,720
A37: 자체수입
B38: 사용료및수수료 | C38: 제증명수수료 | E38: =F38+O38 -> 9,000 | F38: 5,000 | O38: 4,000
C39: 편입학시험전형료 | E39: =F39+O39 -> 9,600 | F39: 9,600 | O39: 0
C40: 시설사용료 | E40: 4,100 | F40: 4,100
B41: 잡수입 | C41: 예적금이자 | E41: =O41+F41 -> 84,000 | F41: 44,000 | G41: 20,000 | H41: * | I41: 1 | J41: 년 | K41: * | L41: 1 | M41: 회 | N41: = | O41: 40,000
C42: 행정잡수입(발전기금9,000원) | E42: =O42+F42 -> 47,500 | F42: 35,000 | G42: 10,000 | H42: * | I42: 1 | J42: 년 | K42: * | L42: 1 | M42: 회 | N42: = | O42: 12,500
A43: 계 | E43: =SUM(E38:E42) -> 154,200 | F43: =E43-O43 -> 97,700 | O43: =SUM(O38:O42) -> 56,500
A44: 기타수입
B45: 과년도수입 | C45: 과년도수입 | E45: =O45+F45 -> 181,226 | F45: 31,226 | O45: 150,000
B46: 이월금 | C46: 순세계잉여금 | E46: =O46+F46 -> 1,900,282 | O46: 1,900,282
C47: 계속비이월금 | E47: 7,768,455 | O47: 7,768,455
C48: 사고이월금(체육기자재) | E48: 191,861 | O48: 191,861
B49: 적립금 | C49: 적립금 | E49: 1,109,000 | F49: 1,109,000
A50: 계 | E50: =SUM(E45:E49) -> 11,150,824 | F50: =F45+F46+F47+F48+F49 -> 1,140,226 | O50: =SUM(O45:O48) -> 10,010,598
A51: 합계 | E51: =E26+E36+E43+E50 -> 34,911,592 | F51: =F50+F43+F36+F26 -> 8,306,604 | O51: =O26+O36+O43+O50 -> 26,604,988

Sheet 세출_2017
A1: 2017학년도 소주한국학교 제2차 세출 추가경정 예산
N2: (단위 : RMB)
A3: 세출
A4: 항 | B4: 목 | C4: 세항
D5: 단가 | E5: 인원 | H5: 횟수 | L5: 경정 | M5: 증감 | N5: 기정
A6: 1.인건비 | B6: 1.교원 | C6: 교원인건비 | D6: ¥13,200.00 | E6: * | F6: 17 | G6: 명 | H6: * | I6: 12 | J6: 월 | K6: = | L6: =N6+M6 -> 8,803,970 | M6: 1,038,370 | N6: 7,765,600
B7: 2.직원및계약교직원 | C7: 직원및계약교직원 인건비 | L7: =N7+M7 -> 1,828,200 | M7: 340,000 | N7: 1,488,200
A8: 계 | L8: 10,632,170 | M8: =M6+M7 -> 1,378,370 | N8: 9,253,800
A9: 2.학교운영비 | B9: 1.일반운영비 | C9: 일반운영비 | D9: ¥890,000.00 | E9: * | F9: 1 | G9: 명 | H9: * | I9: 1 | J9: 년 | K9: = | L9: 1,988,600 | M9: 95,000 | N9: 1,893,600
B10: 소계 | L10: 1,988,600 | M10: =M9 -> 95,000 | N10: 1,893,600
B11: 2.교수학습활동비 | C11: 유치원교과활동 | L11: 45,299 | M11: 5,000 | N11: 40,299
C12: 초등교과활동 | L12: 470,066 | M12: 70,866 | N12: 399,200
C13: 중등교과활동 (상담실구축, 도서관이북코너 등) | L13: =N13+M13 -> 745,925 | M13: 135,495 | N13: 610,430
C14: 체육기자재구입 | L14: =M14+N14 -> 191,861 | N14: 191,861
B15: 소계 | L15: 1,453,151 | M15: =SUM(M11:M14) -> 211,361 | N15: 1,241,790
B16: 3.학생복리비 | C16: 학생복리비 | D16: ¥500.00 | E16: * | F16: 1 | G16: 년 | H16: * | I16: 2 | J16: 회 | K16: = | L16: 409,275 | M16: 308,775 | N16: 100,500
B17: 소계 | L17: 409,275 | M17: =M16 -> 308,775 | N17: 100,500
B18: 4.업무추진비 | C18: 업무추진비 | D18: ¥20.00 | E18: * | F18: 50 | G18: 명 | H18: * | I18: 5 | J18: 회 | K18: = | L18: 109,000 | N18: 109,000
B19: 소계 | L19: 109,000 | N19: 109,000
A20: 계 | L20: 3,960,026 | M20: =M19+M17+M15+M10 -> 615,136 | N20: 3,344,890
A21: 3.자산취득비 | B21: 1.자산취득비 | C21: 비품구입 스쿨버스구입 380,000 (목적사업비 231,610 자체예산 148,390) | D21: ¥800.00 | E21: * | F21: 9 | G21: 개 | H21: * | I21: 1 | J21: 회 | K21: = | L21: =N21+M21 -> 731,610 | M21: 231,610 | N21: 500,000
A22: 계 | L22: 731,610 | M22: =M21 -> 231,610 | N22: 500,000
A23: 4.시설(대수선)비 | B23: 1.시설비 | C23: 교사신축비 | L23: 8,777,455 | M23: 1,009,000 | N23: 7,768,455
C24: 교사신축비(교육부지원금) | L24: 6,050,850 | M24: 6,050,850
C25: 교사신축 준공식 | L25: 100,000 | M25: 100,000
B26: 소계 | L26: =SUM(L23:L25) -> 14,928,305 | M26: =SUM(M23:M25) -> 7,159,850 | N26: 7,768,455
B27: 2.대수선비 | C27: 대규모시설보수비 | D27: ¥25,000.00 | E27: * | F27: 1 | G27: 년 | H27: * | I27: 1 | J27: 회 | K27: = | L27: 412,520 | M27: -1,020,328 | N27: 1,432,848
C28: 소규모수선 등 시설유지비 | D28: ¥25,000.00 | E28: * | F28: 1 | G28: 년 | H28: * | I28: 1 | J28: 회 | K28: = | L28: 29,825 | N28: 29,825
C29: 공구 등 시설유지물품구입 | D29: ¥25,000.00 | E29: * | F29: 1 | G29: 년 | H29: * | I29: 1 | J29: 회 | K29: = | L29: 12,000 | N29: 12,000
B30: 소계 | L30: 454,345 | M30: =M27+M28+M29 -> -1,020,328 | N30: 1,474,673
A31: 계 | L31: 15,382,650 | M31: =M26+M30 -> 6,139,522 | N31: 9,243,128
A32: 5.수익자부담경비 | B32: 1.현장학습비 | C32: 수학여행비 | L32: 443,236 | M32: -96,764 | N32: 540,000
C33: 현장학습비 | D33: ¥1,000.00 | E33: * | F33: 70 | G33: 명 | H33: * | I33: 1 | J33: 회 | K33: = | L33: 28,760 | M33: -241,240 | N33: 270,000
B34: 소계 | L34: 471,996 | M34: =M33+M32 -> -338,004 | N34: 810,000
B35: 2.학교급식비 | C35: 급간식비 | D35: ¥20.00 | E35: * | F35: 120 | G35: 명 | H35: * | I35: 190 | J35: 일 | K35: = | L35: 1,221,250 | N35: 1,221,250
B36: 소계 | L36: 1,221,250 | N36: 1,221,250
B37: 3.방과후학교교육활동비 | C37: 방과후학교 | D37: ¥1,000.00 | E37: * | F37: 70 | G37: 명 | H37: * | I37: 2 | J37: 회 | K37: = | L37: 550,000 | M37: 280,000 | N37: 270,000
B38: 소계 | L38: 550,000 | M38: =M37 -> 280,000 | N38: 270,000
B39: 4.기타수익자부담경비 | C39: 통학버스비 | D39: ¥30.00 | E39: * | F39: 120 | G39: 명 | H39: * | I39: 190 | J39: 일 | K39: = | L39: 1,685,920 | N39: 1,685,920
C40: 버스기사 및 관리용역비 | D40: ¥500.00 | E40: * | F40: 70 | G40: 명 | H40: * | I40: 2 | J40: 회 | K40: = | L40: 204,000 | N40: 204,000
C41: 유류비 및 유지관리비 | L41: 72,000 | N41: 72,000
B42: 소계 | L42: 1,961,920 | N42: 1,961,920
A43: 계 | L43: 4,205,166 | M43: =M42+M38+M36+M34 -> -58,004 | N43: 4,263,170
A44: 6.예비비및기타 | B44: 1.예비비 | C44: 예비비 | L44: 0 | N44: 0
B45: 2.반환금 | C45: 목적경비반환 | L45: 0 | N45: 0
B46: 3.적립금 | C46: 시설보수적립금 | L46: 0 | N46: 0
B47: 4.환차손 | C47: 환차손 | L47: 0 | N47: 0
A48: 계 | L48: 0 | N48: 0
A49: 합 계 | L49: 34,911,622 | M49: =M48+M43+M31+M22+M20+M8 -> 8,306,634 | N49: 26,604,988
